fUSD/lending_fUSD_20240301
["ID","MTS","AMOUNT","RATE_DAILY","PERIOD"]
[315921005,1709283043431,-1815.84,0.00021917,2]
[315921007,1709283043441,-5624.7,0.00021917,2]
[315921009,1709283043452,-500.0,0.00021917,2]
[315921012,1709283043462,-500.0,0.00021917,2]
[315921014,1709283043472,-1216.53,0.00021917,2]
[315921017,1709283043481,-751.34,0.00021917,2]
[315921018,1709283043491,-500.0,0.00021917,2]
[315921020,1709283043502,-500.0,0.00021917,2]
[315921022,1709283043510,-500.0,0.00021917,2]
[315921023,1709283043520,-1146.64,0.00021917,2]
[315921024,1709283043529,-500.0,0.00021917,2]
[315921025,1709283043539,-4245.69,0.00021917,2]
[315921026,1709283043548,-500.0,0.00021917,2]
[315921027,1709283043557,-1482.88,0.00021917,2]
[315921028,1709283043566,-745.69,0.00021917,2]
[315921029,1709283043576,-1012.51,0.00021917,2]
[315921030,1709283043589,-1012.51,0.00021917,2]
[315921031,1709283043623,-500.0,0.00021917,2]
[315921032,1709283043633,-500.0,0.00021917,2]
[315921033,1709283043642,-2726.97,0.00021917,2]
[315921034,1709283043652,-500.0,0.00021917,2]
[315921035,1709283043661,-500.0,0.00021917,2]
[315921036,1709283043670,-770.27,0.00021917,2]
[315921037,1709283043679,-844.92,0.00021917,2]
[315921038,1709283043689,-2796.67,0.00021917,2]
[315921039,1709283043700,-500.0,0.00021917,2]
[315921040,1709283043709,-858.0,0.00021917,2]
[315921041,1709283043719,-876.44,0.00021917,2]
[315921042,1709283043728,-500.0,0.00021917,2]
[315921043,1709283043737,-1659.56,0.00021917,2]
[315921044,1709283043746,-500.0,0.00021917,2]
[315921045,1709283043756,-500.0,0.00021917,2]
[315921046,1709283043765,-664.65,0.00021917,2]
[315921047,1709283043774,-500.0,0.00021917,2]
[315921048,1709283043783,-500.0,0.00021917,2]
[315921049,1709283043794,-500.0,0.00021917,2]
[315921050,1709283043803,-1116.23,0.00021917,2]
[315921051,1709283043815,-500.0,0.00021917,2]
[315921052,1709283043824,-778.77,0.00021917,2]
[315921053,1709283043833,-500.0,0.00021917,2]
[315921054,1709283043843,-1045.93,0.00021917,2]
[315921055,1709283043852,-606.60892045,0.00021917,2]
[315921056,1709283043861,-928.06,0.00021917,2]
[315921057,1709283043871,-500.0,0.00021917,2]
[315921058,1709283043880,-500.0,0.00021917,2]
[315921059,1709283043890,-500.0,0.00021917,2]
[315921060,1709283043900,-942.5,0.00021917,2]
[315921061,1709283043909,-500.0,0.00021917,2]
[315921062,1709283043918,-500.0,0.00021917,2]
[315921063,1709283043928,-320.15382877,0.00021917,2]
[315921064,1709283043938,-500.0,0.00021917,2]
[315921065,1709283043948,-1869.74,0.00021917,2]
[315921066,1709283043957,-2346.58,0.00021917,2]
[315921067,1709283043966,-500.0,0.00021917,2]
[315921068,1709283043975,-500.0,0.00021917,2]
[315921069,1709283043985,-526.1826492,0.00021917,2]
[315921070,1709283043994,-500.0,0.00021917,2]
[315921071,1709283044003,-174.29204369,0.00021917,2]
[315921072,1709283044013,-500.0,0.00021917,2]
[315921073,1709283044022,-515.68729482,0.00021917,2]
[315921074,1709283044031,-1747.05,0.00021917,2]
[315921075,1709283044040,-1955.79,0.00021917,2]
[315921076,1709283044049,-1085.91,0.00021917,2]
[315921077,1709283044058,-500.0,0.00021917,2]
[315921078,1709283044067,-500.0,0.00021917,2]
[315921079,1709283044076,-500.0,0.00021917,2]
[315921080,1709283044085,-500.0,0.00021917,2]
[315921081,1709283044095,-500.0,0.00021917,2]
[315921082,1709283044104,-500.0,0.00021917,2]
[315921083,1709283044113,-2351.17,0.00021917,2]
[315921084,1709283044123,-500.0,0.00021917,2]
[315921085,1709283044132,-500.0,0.00021917,2]
[315921086,1709283044141,-500.0,0.00021917,2]
[315921087,1709283044150,-500.0,0.00021917,2]
[315921088,1709283044159,-500.0,0.00021917,2]
[315921089,1709283044169,-2507.45,0.00021917,2]
[315921090,1709283044178,-1188.22,0.00021917,2]
[315921091,1709283044187,-500.0,0.00021917,2]
[315921092,1709283044197,-500.0,0.00021917,2]
[315921093,1709283044207,-2335.95,0.00021917,2]
[315921094,1709283044216,-514.10632006,0.00021917,2]
[315921095,1709283044226,-500.0,0.00021917,2]
[315921096,1709283044235,-500.0,0.00021917,2]
[315921097,1709283044245,-1152.75,0.00021917,2]
[315921098,1709283044254,-517.49456451,0.00021917,2]
[315921099,1709283044264,-500.0,0.00021917,2]
[315921100,1709283044273,-500.0,0.00021917,2]
[315921101,1709283044283,-752.34,0.00021917,2]
[315921102,1709283044292,-6025.26,0.00021917,2]
[315921103,1709283044302,-500.0,0.00021917,2]
[315921104,1709283044312,-500.0,0.00021917,2]
[315921105,1709283044321,-500.0,0.00021917,2]
[315921106,1709283044331,-609.05977167,0.00021917,2]
[315921107,1709283044340,-801.53,0.00021917,2]
[315921108,1709283044349,-926.08,0.00021917,2]
[315921109,1709283044359,-500.0,0.00021917,2]
[315921110,1709283044368,-556.44717026,0.00021917,2]
[315921111,1709283044378,-1107.95,0.00021917,2]
[315921112,1709283044387,-3678.54,0.00021917,2]
[315921113,1709283044397,-751.18,0.00021917,2]
[315921114,1709283044406,-1115.6,0.00021917,2]
[315921115,1709283044415,-1218.38,0.00021917,2]
[315921116,1709283044425,-500.0,0.00021917,2]
[315921117,1709283044434,-500.0,0.00021917,2]
[315921118,1709283044445,-500.0,0.00021917,2]
[315921119,1709283044454,-7593.77,0.00021917,2]
[315921120,1709283044463,-1104.81,0.00021917,2]
[315921121,1709283044472,-500.0,0.00021917,2]
[315921122,1709283044482,-1440.96,0.00021917,2]
[315921123,1709283044492,-846.55,0.00021917,2]
[315921124,1709283044501,-500.0,0.00021917,2]
[315921125,1709283044511,-511.83269591,0.00021917,2]
[315921126,1709283044521,-1222.83,0.00021917,2]
[315921127,1709283044530,-1971.3,0.00021917,2]
[315921128,1709283044540,-500.0,0.00021917,2]
[315921129,1709283044549,-1403.72,0.00021917,2]
[315921130,1709283044559,-500.0,0.00021917,2]
[315921131,1709283044568,-11900.41,0.00021917,2]
[315921132,1709283044577,-500.0,0.00021917,2]
[315921133,1709283044587,-500.0,0.00021917,2]
[315921134,1709283044596,-1096.16,0.00021917,2]
[315921135,1709283044606,-1565.92,0.00021917,2]
[315921136,1709283044615,-500.0,0.00021917,2]
[315921137,1709283044624,-500.0,0.00021917,2]
[315921138,1709283044635,-500.0,0.00021917,2]
[315921139,1709283044645,-500.0,0.00021917,2]
[315921140,1709283044655,-2449.51,0.00021917,2]
[315921141,1709283044665,-713.01,0.00021917,2]
[315921142,1709283044674,-500.0,0.00021917,2]
[315921143,1709283044684,-514.135562,0.00021917,2]
[315921144,1709283044695,-8752.31,0.00021917,2]
[315921145,1709283044705,-15762.59,0.00021917,2]
[315921146,1709283044717,-500.0,0.00021917,2]
[315921147,1709283044727,-1184.28,0.00021917,2]
[315921148,1709283044737,-500.0,0.00021917,2]
[315921149,1709283044748,-500.0,0.00021917,2]
[315921150,1709283044758,-576.79,0.00021917,2]
[315921151,1709283044768,-685.13,0.00021917,2]
[315921152,1709283044778,-3058.29,0.00021917,2]
[315921153,1709283044788,-729.82,0.00021917,2]
[315921154,1709283044801,-5972.89,0.00021917,2]
[315921155,1709283044810,-500.0,0.00021917,2]
[315921156,1709283044820,-500.0,0.00021917,2]
[315921157,1709283044830,-500.0,0.00021917,2]
[315921158,1709283044840,-7762.02,0.00021917,2]
[315921159,1709283044850,-505.97084282,0.00021917,2]
[315921160,1709283044859,-500.0,0.00021917,2]
[315921161,1709283044868,-508.71526987,0.00021917,2]
[315921162,1709283044879,-8162.4,0.00021917,2]
[315921163,1709283044889,-500.0,0.00021917,2]
[315921164,1709283044899,-500.0,0.00021917,2]
[315921165,1709283044909,-500.0,0.00021917,2]
[315921166,1709283044918,-1166.44,0.00021917,2]
[315921167,1709283044928,-500.0,0.00021917,2]
[315921168,1709283044938,-1047.1,0.00021917,2]
[315921169,1709283044949,-969.79,0.00021917,2]
[315921170,1709283044959,-157.2,0.00021918,2]
[315921171,1709283044970,-154.19,0.00021918,2]
[315921172,1709283044979,-500.0,0.00021918,2]
[315921173,1709283044989,-1500.0,0.00021918,3]
[315921174,1709283044999,-168.46,0.00021918,2]
[315921175,1709283045009,-207.99596743,0.00021918,2]
[315921176,1709283045018,-1275.41569623,0.00021947,2]
[315921177,1709283045028,-55555.0,0.00021968,2]
[315921178,1709283045037,-150.0,0.00021968,2]
[315921179,1709283045047,-1012.51,0.00021968,2]
[315921180,1709283045056,-357.78993092,0.00021968,2]
[315921181,1709283045066,-500.0,0.00021968,2]
[315921182,1709283045075,-500.0,0.00021968,2]
[315921183,1709283045085,-500.0,0.00021968,2]
[315921184,1709283045095,-500.0,0.00021968,2]
[315921185,1709283045106,-400.02406007,0.00021968,2]
[315921186,1709283045119,-483.07349013,0.00021968,2]
[315921187,1709283045129,-132650.1031,0.00021969,2]
[315921188,1709283045139,-1000.0,0.00021976,2]
[315921189,1709283045148,-165.0,0.00022,2]
[315921190,1709283045158,-612.22801672,0.00022,2]
[315921191,1709283045167,-22153.39447681,0.00022,2]
[315921192,1709283045192,-10347.40667357,0.00022,2]
[315921193,1709283045205,-9557.5859382,0.00022,2]
[315921194,1709283045239,-58916.93677972,0.00022,2]
[315921195,1709283045250,-331.632649,0.00022,2]
[315921196,1709283045423,-32981.66602109,0.00022,2]
[315921199,1709283045481,-69682.28746161,0.00022,2]
[315921200,1709283045491,-647.56,0.00022001,2]
[315921201,1709283045501,-7303.16733753,0.00022061,2]
[315921202,1709283045510,-290.38741738,0.00022067,2]
[315921203,1709283045520,-1012.51,0.00022067,2]
[315921204,1709283045529,-546.34,0.00022068,2]
[315921205,1709283045539,-504.15179769,0.00022068,2]
[315921207,1709283045549,-500.0,0.00022068,2]
[315921209,1709283045559,-500.0,0.00022068,2]
[315921210,1709283045569,-500.0,0.00022068,2]
[315921211,1709283045578,-500.0,0.00022068,2]
[315921212,1709283045588,-500.0,0.00022068,2]
[315921213,1709283045598,-500.0,0.00022068,2]
[315921214,1709283045607,-500.0,0.00022068,2]
[315921215,1709283045617,-500.0,0.00022068,2]
[315921216,1709283045627,-500.0,0.00022068,2]
[315921217,1709283045636,-500.0,0.00022068,2]
[315921218,1709283045646,-500.0,0.00022068,2]
[315921219,1709283045656,-500.0,0.00022068,2]
[315921220,1709283045665,-500.0,0.00022068,2]
[315921221,1709283045675,-500.0,0.00022068,2]
[315921222,1709283045684,-500.0,0.00022068,2]
[315921223,1709283045695,-500.0,0.00022068,2]
[315921224,1709283045704,-500.0,0.00022068,2]
[315921225,1709283045714,-500.0,0.00022068,2]
[315921226,1709283045724,-500.0,0.00022068,2]
[315921227,1709283045734,-500.0,0.00022068,2]
[315921228,1709283045744,-500.0,0.00022068,2]
[315921229,1709283045753,-500.0,0.00022068,2]
[315921230,1709283045763,-500.0,0.00022068,2]
[315921231,1709283045772,-500.0,0.00022068,2]
[315921232,1709283045781,-500.0,0.00022068,2]
[315921233,1709283045791,-500.0,0.00022068,2]
[315921234,1709283045800,-250.31658356,0.00022068,2]
[315921235,1709283045810,-500.0,0.00022068,2]
[315921236,1709283045820,-500.0,0.00022068,2]
[315921237,1709283045830,-500.0,0.00022068,2]
[315921238,1709283045839,-514.98408887,0.00022068,2]
[315921239,1709283045848,-500.0,0.00022068,2]
[315921240,1709283045858,-500.0,0.00022068,2]
[315921241,1709283045868,-859.85,0.00022068,2]
[315921242,1709283045877,-500.0,0.00022068,2]
[315921243,1709283045891,-500.0,0.00022068,2]
[315921244,1709283045901,-500.0,0.00022068,2]
[315921245,1709283045910,-500.0,0.00022068,2]
[315921246,1709283045919,-500.0,0.00022068,2]
[315921247,1709283045929,-500.0,0.00022068,2]
[315921248,1709283045938,-517.8854584,0.00022068,2]
[315921249,1709283045954,-500.0,0.00022068,2]
[315921250,1709283045964,-500.0,0.00022068,2]
[315921251,1709283045974,-500.0,0.00022068,2]
[315921252,1709283045983,-500.0,0.00022068,2]
[315921253,1709283045993,-500.0,0.00022068,2]
[315921254,1709283046003,-500.0,0.00022068,2]
[315921255,1709283046013,-500.0,0.00022068,2]
[315921256,1709283046023,-500.0,0.00022068,2]
[315921257,1709283046033,-500.0,0.00022068,2]
[315921258,1709283046043,-500.0,0.00022068,2]
[315921259,1709283046053,-500.0,0.00022068,2]
[315921260,1709283046063,-500.0,0.00022068,2]
[315921261,1709283046074,-500.0,0.00022068,2]
[315921262,1709283046084,-500.0,0.00022068,2]
[315921263,1709283046094,-500.0,0.00022068,2]
[315921264,1709283046105,-500.0,0.00022068,2]
[315921265,1709283046115,-161.17031366,0.00022068,2]
[315921266,1709283046124,-500.0,0.00022068,2]
[315921267,1709283046135,-500.0,0.00022068,2]
[315921268,1709283046145,-500.0,0.00022068,2]
[315921269,1709283046155,-582.6750658,0.00022068,2]
[315921270,1709283046166,-500.0,0.00022068,2]
[315921271,1709283046176,-500.0,0.00022068,2]
[315921272,1709283046187,-500.0,0.00022068,2]
[315921273,1709283046201,-500.0,0.00022068,2]
[315921274,1709283046211,-500.0,0.00022068,2]
[315921275,1709283046221,-500.0,0.00022068,2]
[315921276,1709283046233,-500.0,0.00022068,2]
[315921277,1709283046243,-500.0,0.00022068,2]
[315921278,1709283046253,-500.0,0.00022068,2]
[315921279,1709283046263,-504.07989324,0.00022068,2]
[315921280,1709283046273,-500.0,0.00022068,2]
[315921281,1709283046283,-500.0,0.00022068,2]
[315921282,1709283046293,-500.0,0.00022068,2]
[315921283,1709283046304,-500.0,0.00022068,2]
[315921284,1709283046314,-500.0,0.00022068,2]
[315921285,1709283046325,-500.0,0.00022068,2]
[315921286,1709283046336,-502.78563805,0.00022068,2]
[315921287,1709283046346,-500.0,0.00022068,2]
[315921288,1709283046356,-500.0,0.00022068,2]
[315921289,1709283046365,-503.75000656,0.00022068,2]
[315921290,1709283046375,-500.0,0.00022068,2]
[315921291,1709283046385,-500.0,0.00022068,2]
[315921292,1709283046395,-515.40570375,0.00022068,2]
[315921293,1709283046404,-500.0,0.00022068,2]
[315921294,1709283046414,-500.0,0.00022068,2]
[315921295,1709283046423,-500.0,0.00022068,2]
[315921296,1709283046432,-500.0,0.00022068,2]
[315921297,1709283046442,-500.0,0.00022068,2]
[315921298,1709283046454,-500.0,0.00022068,2]
[315921299,1709283046463,-603.23357405,0.00022068,2]
[315921300,1709283046473,-500.0,0.00022068,2]
[315921301,1709283046482,-507.71024072,0.00022068,2]
[315921302,1709283046491,-500.0,0.00022068,2]
[315921303,1709283046501,-500.0,0.00022068,2]
[315921304,1709283046511,-508.77793524,0.00022068,2]
[315921305,1709283046520,-500.0,0.00022068,2]
[315921306,1709283046529,-500.0,0.00022068,2]
[315921307,1709283046538,-500.0,0.00022068,2]
[315921308,1709283046547,-531.53133181,0.00022068,2]
[315921309,1709283046557,-451.89259094,0.00022068,2]
[315921310,1709283046566,-288.7850028,0.00022068,2]
[315921311,1709283046575,-500.0,0.00022068,2]
[315921312,1709283046585,-500.0,0.00022068,2]
[315921313,1709283046594,-500.0,0.00022068,2]
[315921314,1709283046604,-500.0,0.00022068,2]
[315921315,1709283046613,-500.0,0.00022068,2]
[315921316,1709283046622,-500.0,0.00022068,2]
[315921317,1709283046633,-507.66642084,0.00022068,2]
[315921318,1709283046642,-500.0,0.00022068,2]
[315921319,1709283046651,-500.0,0.00022068,2]
[315921320,1709283046661,-500.0,0.00022068,2]
[315921321,1709283046670,-500.0,0.00022068,2]
[315921322,1709283046679,-500.0,0.00022068,2]
[315921323,1709283046689,-500.0,0.00022068,2]
[315921324,1709283046700,-500.0,0.00022068,2]
[315921325,1709283046709,-508.15365806,0.00022068,2]
[315921326,1709283046718,-1065.49,0.00022068,2]
[315921327,1709283046728,-510.07280503,0.00022068,2]
[315921328,1709283046737,-529.00663029,0.00022068,2]
[315921329,1709283046746,-500.0,0.00022068,2]
[315921330,1709283046756,-510.69374399,0.00022068,2]
[315921331,1709283046765,-436.28,0.00022068,2]
[315921332,1709283046775,-500.0,0.00022068,2]
[315921333,1709283046784,-500.0,0.00022068,2]
[315921334,1709283046795,-500.0,0.00022068,2]
[315921335,1709283046806,-500.0,0.00022068,2]
[315921336,1709283046815,-500.0,0.00022068,2]
[315921337,1709283046826,-500.0,0.00022068,2]
[315921338,1709283046836,-500.0,0.00022068,2]
[315921339,1709283046845,-500.0,0.00022068,2]
[315921340,1709283046854,-500.0,0.00022068,2]
[315921341,1709283046863,-500.0,0.00022068,2]
[315921342,1709283046874,-502.23754686,0.00022068,2]
[315921343,1709283046884,-500.0,0.00022068,2]
[315921344,1709283046893,-500.0,0.00022068,2]
[315921345,1709283046902,-500.0,0.00022068,2]
[315921346,1709283046912,-500.0,0.00022068,2]
[315921347,1709283046921,-500.0,0.00022068,2]
[315921348,1709283046930,-500.0,0.00022068,2]
[315921349,1709283046940,-540.64892425,0.00022068,2]
[315921350,1709283046952,-500.0,0.00022068,2]
[315921351,1709283046963,-500.0,0.00022068,2]
[315921352,1709283046972,-574.35,0.00022068,2]
[315921353,1709283046982,-500.0,0.00022068,2]
[315921354,1709283046991,-500.0,0.00022068,2]
[315921355,1709283047001,-500.0,0.00022068,2]
[315921356,1709283047011,-500.0,0.00022068,2]
[315921357,1709283047020,-500.0,0.00022068,2]
[315921358,1709283047029,-793.07,0.00022068,2]
[315921359,1709283047039,-500.0,0.00022068,2]
[315921360,1709283047048,-572.32,0.00022068,2]
[315921361,1709283047057,-500.0,0.00022068,2]
[315921362,1709283047067,-513.31871677,0.00022068,2]
[315921363,1709283047077,-510.73,0.00022068,2]
[315921364,1709283047086,-326.16,0.00022068,2]
[315921365,1709283047095,-546.93682322,0.00022068,2]
[315921366,1709283047105,-500.0,0.00022068,2]
[315921367,1709283047115,-500.0,0.00022068,2]
[315921368,1709283047125,-500.0,0.00022068,2]
[315921369,1709283047134,-534.83,0.00022068,2]
[315921370,1709283047143,-500.0,0.00022068,2]
[315921371,1709283047153,-158.98805044,0.00022068,2]
[315921372,1709283047163,-500.0,0.00022068,2]
[315921373,1709283047172,-500.0,0.00022068,2]
[315921374,1709283047182,-720.02,0.00022068,2]
[315921375,1709283047191,-500.0,0.00022068,2]
[315921376,1709283047204,-523.47653132,0.00022068,2]
[315921377,1709283047214,-500.0,0.00022068,2]
[315921378,1709283047224,-641.98,0.00022068,2]
[315921379,1709283047235,-500.0,0.00022068,2]
[315921380,1709283047245,-892.65,0.00022068,2]
[315921381,1709283047255,-175.92101058,0.00022068,2]
[315921382,1709283047265,-863.58,0.00022068,2]
[315921383,1709283047274,-510.33386553,0.00022068,2]
[315921384,1709283047283,-500.0,0.00022068,2]
[315921385,1709283047293,-525.71,0.00022068,2]
[315921386,1709283047302,-510.42147758,0.00022068,2]
[315921387,1709283047311,-500.0,0.00022068,2]
[315921388,1709283047320,-500.0,0.00022068,2]
[315921389,1709283047330,-500.0,0.00022068,2]
[315921390,1709283047340,-500.0,0.00022068,2]
[315921391,1709283047350,-500.0,0.00022068,2]
[315921392,1709283047359,-527.23615404,0.00022068,2]
[315921393,1709283047369,-626.71,0.00022068,2]
[315921394,1709283047378,-500.0,0.00022068,2]
[315921395,1709283047387,-500.0,0.00022068,2]
[315921396,1709283047396,-500.0,0.00022068,2]
[315921397,1709283047406,-508.2190333,0.00022068,2]
[315921398,1709283047415,-500.0,0.00022068,2]
[315921399,1709283047424,-504.51283448,0.00022068,2]
[315921400,1709283047433,-500.0,0.00022068,2]
[315921401,1709283047443,-534.00572542,0.00022068,2]
[315921402,1709283047453,-505.79793721,0.00022068,2]
[315921403,1709283047463,-500.0,0.00022068,2]
[315921404,1709283047473,-500.0,0.00022068,2]
[315921405,1709283047482,-500.0,0.00022068,2]
[315921406,1709283047492,-500.0,0.00022068,2]
[315921407,1709283047502,-738.81,0.00022068,2]
[315921408,1709283047512,-500.0,0.00022068,2]
[315921409,1709283047522,-500.0,0.00022068,2]
[315921410,1709283047532,-500.0,0.00022068,2]
[315921411,1709283047541,-1291.99,0.00022068,2]
[315921412,1709283047551,-500.0,0.00022068,2]
[315921413,1709283047561,-500.0,0.00022068,2]
[315921414,1709283047571,-500.0,0.00022068,2]
[315921415,1709283047580,-510.59790702,0.00022068,2]
[315921416,1709283047590,-500.0,0.00022068,2]
[315921417,1709283047599,-500.0,0.00022068,2]
[315921418,1709283047609,-1703.56,0.00022068,2]
[315921419,1709283047618,-500.0,0.00022068,2]
[315921420,1709283047628,-500.0,0.00022068,2]
[315921421,1709283047637,-500.0,0.00022068,2]
[315921422,1709283047647,-500.0,0.00022068,2]
[315921423,1709283047657,-506.22865143,0.00022068,2]
[315921424,1709283047666,-501.08895828,0.00022068,2]
[315921425,1709283047676,-500.0,0.00022068,2]
[315921426,1709283047685,-500.0,0.00022068,2]
[315921428,1709283047697,-973.88,0.00022068,2]
[315921430,1709283047706,-500.0,0.00022068,2]
[315921432,1709283047716,-500.0,0.00022068,2]
[315921434,1709283047725,-500.0,0.00022068,2]
[315921436,1709283047735,-500.0,0.00022068,2]
[315921438,1709283047744,-500.0,0.00022068,2]
[315921440,1709283047753,-500.0,0.00022068,2]
[315921442,1709283047762,-631.02,0.00022068,2]
[315921444,1709283047771,-500.0,0.00022068,2]
[315921445,1709283047781,-514.0,0.00022068,2]
[315921447,1709283047791,-500.0,0.00022068,2]
[315921450,1709283047801,-500.0,0.00022068,2]
[315921452,1709283047811,-503.57405949,0.00022068,2]
[315921453,1709283047821,-500.0,0.00022068,2]
[315921456,1709283047831,-500.0,0.00022068,2]
[315921457,1709283047840,-932.82,0.00022068,2]
[315921459,1709283047850,-500.0,0.00022068,2]
[315921462,1709283047861,-500.0,0.00022068,2]
[315921463,1709283047870,-500.0,0.00022068,2]
[315921473,1709283047943,-1678.54,0.00022068,2]
[315921475,1709283047954,-702.58,0.00022068,2]
[315921477,1709283047963,-510.66342306,0.00022068,2]
[315921479,1709283047972,-500.0,0.00022068,2]
[315921481,1709283047981,-500.0,0.00022068,2]
[315921482,1709283047990,-500.0,0.00022068,2]
[315921485,1709283048000,-500.0,0.00022068,2]
[315921487,1709283048009,-721.73,0.00022068,2]
[315921488,1709283048019,-500.0,0.00022068,2]
[315921491,1709283048028,-500.0,0.00022068,2]
[315921493,1709283048037,-500.0,0.00022068,2]
[315921494,1709283048047,-500.0,0.00022068,2]
[315921497,1709283048057,-500.0,0.00022068,2]
[315921498,1709283048066,-500.0,0.00022068,2]
[315921500,1709283048075,-609.85102892,0.00022068,2]
[315921503,1709283048084,-500.0,0.00022068,2]
[315921504,1709283048094,-500.0,0.00022068,2]
[315921506,1709283048103,-1446.92,0.00022068,2]
[315921507,1709283048113,-500.0,0.00022068,2]
[315921509,1709283048122,-805.36,0.00022068,2]
[315921512,1709283048131,-500.0,0.00022068,2]
[315921514,1709283048140,-500.0,0.00022068,2]
[315921516,1709283048150,-500.0,0.00022068,2]
[315921518,1709283048158,-500.0,0.00022068,2]
[315921520,1709283048167,-500.0,0.00022068,2]
[315921522,1709283048177,-500.0,0.00022068,2]
[315921524,1709283048186,-906.53,0.00022068,2]
[315921526,1709283048197,-510.17,0.00022068,2]
[315921528,1709283048206,-500.0,0.00022068,2]
[315921530,1709283048215,-500.0,0.00022068,2]
[315921532,1709283048224,-500.0,0.00022068,2]
[315921534,1709283048233,-363.24960393,0.00022068,2]
[315921536,1709283048241,-500.0,0.00022068,2]
[315921537,1709283048251,-500.0,0.00022068,2]
[315921539,1709283048260,-500.0,0.00022068,2]
[315921541,1709283048269,-500.0,0.00022068,2]
[315921543,1709283048278,-500.0,0.00022068,2]
[315921545,1709283048287,-500.0,0.00022068,2]
[315921547,1709283048296,-500.0,0.00022068,2]
[315921549,1709283048305,-500.0,0.00022068,2]
[315921551,1709283048314,-500.0,0.00022068,2]
[315921553,1709283048323,-500.0,0.00022068,2]
[315921555,1709283048332,-502.5239126,0.00022068,2]
[315921557,1709283048341,-500.0,0.00022068,2]
[315921559,1709283048350,-500.0,0.00022068,2]
[315921561,1709283048359,-445.26624657,0.00022068,2]
[315921562,1709283048368,-500.0,0.00022068,2]
[315921563,1709283048377,-500.0,0.00022068,2]
[315921564,1709283048387,-500.0,0.00022068,2]
[315921565,1709283048396,-500.0,0.00022068,2]
[315921566,1709283048405,-500.0,0.00022068,2]
[315921567,1709283048414,-500.0,0.00022068,2]
[315921568,1709283048424,-500.0,0.00022068,2]
[315921569,1709283048433,-500.0,0.00022068,2]
[315921570,1709283048442,-500.0,0.00022068,2]
[315921571,1709283048453,-195.38986901,0.00022068,2]
[315921572,1709283048462,-500.0,0.00022068,2]
[315921573,1709283048471,-500.0,0.00022068,2]
[315921574,1709283048480,-500.0,0.00022068,2]
[315921575,1709283048490,-746.82,0.00022068,2]
[315921576,1709283048499,-500.0,0.00022068,2]
[315921577,1709283048509,-500.0,0.00022068,2]
[315921578,1709283048518,-500.0,0.00022068,2]
[315921579,1709283048527,-644.05,0.00022068,2]
[315921580,1709283048537,-500.0,0.00022068,2]
[315921581,1709283048545,-500.0,0.00022068,2]
[315921582,1709283048555,-500.0,0.00022068,2]
[315921583,1709283048564,-500.0,0.00022068,2]
[315921584,1709283048573,-209.90660183,0.00022068,2]
[315921585,1709283048582,-504.92454911,0.00022068,2]
[315921586,1709283048592,-584.84,0.00022068,2]
[315921587,1709283048601,-500.0,0.00022068,2]